Cogmind - Beta 10.2 @@@ ROGUE MODE // 2020.11.24 @ 10:31:07 // Halloween2020/ForbiddenLore Player: Luigi Panache Result: Destroyed by Y-54 Guardian with Gatling Laser Performance ------------- Evolutions (3) 1500 Regions Visited (7) 1400 Robots Destroyed (0) 0 Value Destroyed (10) 10 Prototype IDs (25) 500 Alien Tech Used (0) 0 Bonus (1075) 1075 TOTAL SCORE: 4485 Bonus ------- Pacifist 634 Follower Combat Kills 141 Aligned with FarCom 300 Cogmind --------- Core Integrity 0/700 Matter 296/300 Energy 100/100 System Corruption 0% Temperature Cool (27) Movement Core (50) Location -7/Storage Parts ------- > --- POWER (2) -------- (None) > --- PROPULSION (4) --- (None) > --- UTILITY (5) ------ Enhanced Optical Array > --- WEAPON (2) ------- (None) > --- INVENTORY (4) ---- Ion Engine Micro Nuclear Core Weight Redist. System Peak State ------------ > --- POWER ------------ (None) > --- PROPULSION ------- Compact Wheel Xenon Bombardment Thruster Xenon Bombardment Thruster Xenon Bombardment Thruster > --- UTILITY ---------- Enhanced Optical Array Transmission Jammer Maneuvering Thrusters > --- WEAPON ----------- Improved Datajack > --- INVENTORY -------- Ion Engine Micro Nuclear Core Wheel Weight Redist. System [Rating: 26] Favorites ----------- Power Light Ion Engine Engine Light Ion Engine Power Core Light Nuclear Core Propulsion Compact Wheel Wheel Compact Wheel Hover Unit Hover Unit Flight Unit Xenon Bombardment Thruster Utility Small Storage Unit Device Advanced Terrain Scanner Storage Small Storage Unit Processor Signal Interpreter Weapon Field Lobotomy Kit Energy Gun Small Laser Ballistic Gun Assault Rifle Special Weapon Field Lobotomy Kit Impact Weapon Hammer Special Melee Weapon Improved Datajack Build | -11 -10 -10 -10 -9 -8 -7 -7 ------- Run | Scr Mat Min Exi Min Mat Fac Sto Slots Evolved 6 | . . . . . 4 2 . Power 1 | . . . . . 1 . . Propulsion 2 | . . . . . 2 . . Utility 3 | . . . . . 1 2 . Weapon . | . . . . . . . . Parts Attached 37 | 6 3 3 . 4 10 7 4 Power 4 | 1 . 1 . . 1 1 . Engine 2 | 1 . 1 . . . . . Core 2 | . . . . . 1 1 . Reactor . | . . . . . . . . Propulsion 16 | 2 2 1 . 3 3 4 1 Treads . | . . . . . . . . Leg . | . . . . . . . . Wheel 8 | 2 1 1 . 1 1 1 1 Hover 3 | . . . . 2 1 . . Flight 5 | . 1 . . . 1 3 . Utility 10 | 1 1 . . . 4 2 2 Device 7 | . . . . . 4 1 2 Storage 1 | 1 . . . . . . . Processor 2 | . 1 . . . . 1 . Hackware . | . . . . . . . . Protection . | . . . . . . . . Artifact . | . . . . . . . . Weapon 7 | 2 . 1 . 1 2 . 1 Energy Gun 1 | 1 . . . . . . . Energy Cannon . | . . . . . . . . Ballistic Gun 1 | 1 . . . . . . . Ballistic Cannon . | . . . . . . . . Launcher . | . . . . . . . . Special Weapon 3 | . . 1 . 1 1 . . Impact Weapon 1 | . . . . . 1 . . Slashing Weapon . | . . . . . . . . Piercing Weapon . | . . . . . . . . Special Melee Weapon 1 | . . . . . . . 1 Unidentified Prototypes 2 | . . . . . 2 . . Parts Lost 18 | . 2 . . 1 7 . 8 Power 1 | . . . . . 1 . . Propulsion 11 | . 2 . . . 4 . 5 Utility 4 | . . . . . 2 . 2 Weapon 2 | . . . . 1 . . 1 Highest Loss Streak 6 | . 2 . . 1 4 . 6 Average Slot Usage (%) 60 | . 72 45 71 85 65 19 41 Engine 9 | . 14 14 14 14 7 . . Core 1 | . . . . . 3 . . Wheel 6 | . 16 1 14 2 7 6 5 Hover 11 | . . . . 25 18 . . Flight 2 | . 12 . . . 2 4 12 Device 6 | . . . . . 13 6 9 Storage 9 | . 14 14 14 14 7 . . Processor 7 | . 11 14 14 14 2 1 7 Special Weapon 3 | . . 1 14 14 . . . Naked Turns 30 | . . . . . 13 17 . Heaviest Build 17 | 12 12 10 8 16 17 1 8 Greatest Support 39 | 26 26 16 16 28 39 21 21 Greatest Overweight (x) 3 | 1 2 3 . . 1 . 2 Average Overweight (x) . | . . 1 . . . . . Largest Inventory Capacity 6 | 6 6 6 6 6 6 4 4 Average Capacity 5 | 5 6 6 6 6 5 4 4 Most Carried 6 | 1 5 5 5 6 6 4 4 Average Carried 4 | . 3 4 4 4 5 3 3 Final Capacity 6 | 6 6 6 6 6 4 4 4 Final Carried 6 | 1 5 4 5 6 3 4 3 Class Distribution -------------------- 66% | Mutant 32% | Scout Dominant Class ---------------- Mutant | -10/Materials Mutant | -10/Mines Mutant | -10/Exiles Mutant | -9/Mines Scout | -8/Materials Mutant | -7/Factory Mutant | -7/Storage Resources | -11 -10 -10 -10 -9 -8 -7 -7 ----------- Run | Scr Mat Min Exi Min Mat Fac Sto Matter Collected 501 | 197 . 43 . 105 90 . 66 Remotely . | . . . . . . . . Salvage Created . | . . . . . . . . Parts . | . . . . . . . . Haulers Intercepted . | . . . . . . . . Recyclers Shooed . | . . . . . . . . Parts Field Recycled . | . . . . . . . . Retrieved Matter . | . . . . . . . . Parts Self-Destructed . | . . . . . . . . Prevented . | . . . . . . . . Kills | -11 -10 -10 -10 -9 -8 -7 -7 ------- Run | Scr Mat Min Exi Min Mat Fac Sto Combat Hostiles Destroyed . | . . . . . . . . Classes Destroyed . | . . . . . . . . Best Kill Streak . | . . . . . . . . Combat Bots Only . | . . . . . . . . Max Kills in Single Turn . | . . . . . . . . Gunslinging . | . . . . . . . . Exploded . | . . . . . . . . Melee . | . . . . . . . . Uniques/NPCs Destroyed . | . . . . . . . . Combat | -11 -10 -10 -10 -9 -8 -7 -7 -------- Run | Scr Mat Min Exi Min Mat Fac Sto Damage Taken 2032 | . 249 9 . 154 545 . 1075 Core 1131 | . 146 . . 59 224 . 702 Absorbed by Shields 41 | . . . . . 41 . . Core Remaining (%) 59 | 100 . . . 18 59 . . Volleys Fired 7 | . . . . 5 2 . . Largest 1 | . . . . 1 1 . . Hottest 20 | . . . . . 20 . . Shots Fired 7 | . . . . 5 2 . . Gun . | . . . . . . . . Cannon . | . . . . . . . . Launcher . | . . . . . . . . Special 7 | . . . . 5 2 . . Kinetic . | . . . . . . . . Thermal 2 | . . . . . 2 . . Explosive . | . . . . . . . . Electromagnetic . | . . . . . . . . Robot Hit Streak 5 | . . . . 5 . . . Robot Miss Streak . | . . . . . . . . Penetration Max . | . . . . . . . . Secondary Targets . | . . . . . . . . Shots Hit Robots 5 | . . . . 5 . . . Core Hits . | . . . . . . . . Critical Hits . | . . . . . . . . Critical Kills . | . . . . . . . . Critical Parts Destroyed . | . . . . . . . . Melee Attacks 18 | . . . . . 18 . . Impact 18 | . . . . . 18 . . Slashing . | . . . . . . . . Piercing . | . . . . . . . . Sneak Attacks . | . . . . . . . . Combat Hostiles . | . . . . . . . . Follow-up Attacks . | . . . . . . . . Damage Inflicted . | . . . . . . . . Guns . | . . . . . . . . Cannons . | . . . . . . . . Explosions . | . . . . . . . . Melee . | . . . . . . . . Ramming . | . . . . . . . . Kinetic . | . . . . . . . . Thermal . | . . . . . . . . Explosive . | . . . . . . . . Electromagnetic . | . . . . . . . . Impact . | . . . . . . . . Slashing . | . . . . . . . . Piercing . | . . . . . . . . Highest Corruption . | . . . . . . . . Average Corruption . | . . . . . . . . Corruption Purged . | . . . . . . . . Overload Shots . | . . . . . . . . Overflow Damage . | . . . . . . . . Projectiles . | . . . . . . . . Explosions . | . . . . . . . . Melee . | . . . . . . . . Knockbacks . | . . . . . . . . Impact . | . . . . . . . . Kinetic . | . . . . . . . . Secondary . | . . . . . . . . Self-Inflicted Damage . | . . . . . . . . Shots . | . . . . . . . . Rammed . | . . . . . . . . Targets Rammed . | . . . . . . . . Kicked . | . . . . . . . . Crushed . | . . . . . . . . Highest Temperature . | . . . . . . . . Average Temperature . | . . . . . . . . Received Heat Transfer 651 | . 24 . . . 189 . 438 Siege Activations . | . . . . . . . . Robots Corrupted . | . . . . . . . . Combat Hostiles . | . . . . . . . . Parts Fried . | . . . . . . . . Impact Corruptions . | . . . . . . . . Robots Melted . | . . . . . . . . Combat Hostiles . | . . . . . . . . Parts Melted . | . . . . . . . . Heat Transferred . | . . . . . . . . Parts Sabotaged . | . . . . . . . . Parts Stolen . | . . . . . . . . Parts Stripped . | . . . . . . . . Power Chain Reactions . | . . . . . . . . Missiles Intercepted . | . . . . . . . . Alert | -11 -10 -10 -10 -9 -8 -7 -7 ------- Run | Scr Mat Min Exi Min Mat Fac Sto Peak Influence 250 | . . 81 . 58 250 117 86 Initial 113 | . . . . . 22 113 52 Average 54 | . . 3 . 2 89 116 56 Maximum Alert Level 1 | . . . . . 1 . . Low Security (%) 99 | 100 100 100 . 100 98 100 100 Level 1 . | . . . . . 1 . . Level 2 . | . . . . . . . . Level 3 . | . . . . . . . . Level 4 . | . . . . . . . . Level 5 . | . . . . . . . . High Security . | . . . . . . . . Max Security . | . . . . . . . . Squads Dispatched 6 | . 1 . . . 4 . 1 Investigation 4 | . . . . . 4 . . Extermination . | . . . . . . . . Reinforcement 2 | . 1 . . . . . 1 Assault . | . . . . . . . . Garrison . | . . . . . . . . Intercept . | . . . . . . . . Construction Impeded . | . . . . . . . . Haulers Reinforced . | . . . . . . . . Stealth | -11 -10 -10 -10 -9 -8 -7 -7 --------- Run | Scr Mat Min Exi Min Mat Fac Sto Distress Signals 11 | . 2 . . . 8 . 1 Communications Jammed . | . . . . . . . . Distress Signals . | . . . . . . . . Times Spotted 81 | . 8 3 . 25 32 . 13 Peak Tracking Total 16 | . 6 2 . 16 13 . 9 Tactical Retreats 10 | . . . . . 9 . 1 Traps | -11 -10 -10 -10 -9 -8 -7 -7 ------- Run | Scr Mat Min Exi Min Mat Fac Sto Traps Triggered 4 | . . . . . 3 . 1 Indirectly . | . . . . . . . . Trap Hack Attempts . | . . . . . . . . Triggered . | . . . . . . . . Disarmed . | . . . . . . . . Reprogrammed . | . . . . . . . . Reused . | . . . . . . . . Traps Extracted . | . . . . . . . . Installed . | . . . . . . . . Triggered . | . . . . . . . . Exploded 1 | . . . 1 . . . . Machines | -11 -10 -10 -10 -9 -8 -7 -7 ---------- Run | Scr Mat Min Exi Min Mat Fac Sto Machines Disabled 1 | . . . . . 1 . . Max in Single Turn . | . . . . . . . . Machines Sabotaged . | . . . . . . . . Garrisons Compromised . | . . . . . . . . Overloaded Fab Kills . | . . . . . . . . Fab Network Shutdowns . | . . . . . . . . Hacking | -11 -10 -10 -10 -9 -8 -7 -7 --------- Run | Scr Mat Min Exi Min Mat Fac Sto Machines Accessed 20 | . 2 . 1 . 12 1 4 Terminals 15 | . 2 . . . 8 1 4 Fabricators . | . . . . . . . . Repair Stations 1 | . . . . . 1 . . Recycling Units 1 | . . . . . 1 . . Scanalyzers 2 | . . . . . 2 . . Garrison Access . | . . . . . . . . Total Hacks 45 | . 6 . 1 . 30 2 6 Successful 20 | . 2 . 1 . 11 1 5 Failed 25 | . 4 . . . 19 1 1 Catastrophic 7 | . . . . . 7 . . Database Lockouts . | . . . . . . . . Manual 16 | . . . 1 . 12 . 3 Terminals 34 | . 6 . . . 20 2 6 Fabricators . | . . . . . . . . Repair Stations 4 | . . . . . 4 . . Recycling Units 2 | . . . . . 2 . . Scanalyzers 4 | . . . . . 4 . . Garrison Access . | . . . . . . . . Terminal Hacks 11 | . 2 . 1 . 3 1 4 Open Door 1 | . . . . . . . 1 Level Access Points 1 | . . . . . . . 1 Emergency Access Points 2 | . . . . . 1 1 . Terminal Index 1 | . . . . . 1 . . Alert Level 2 | . . . . . . . 2 Maintenance Status 1 | . 1 . . . . . . Security Status 1 | . 1 . . . . . . Recall Investigation 1 | . . . . . 1 . . EX-Prototype ID Bank 1 | . . . 1 . . . . Fabricator Hacks . | . . . . . . . . Repair Station Hacks 1 | . . . . . 1 . . Scan Component 1 | . . . . . 1 . . Recycling Unit Hacks . | . . . . . . . . Scanalyzer 4 | . . . . . 4 . . Insert Component 2 | . . . . . 2 . . Analyze 2 | . . . . . 2 . . Garrison Access Hacks . | . . . . . . . . Unauthorized Hacks 4 | . . . . . 3 . 1 Terminals 4 | . . . . . 3 . 1 Botnet 3 | . . . . . 2 . 1 Operators 1 | . . . . . 1 . . Fabricators . | . . . . . . . . Repair Stations . | . . . . . . . . Recycling Units . | . . . . . . . . Scanalyzers . | . . . . . . . . Garrison Access . | . . . . . . . . Data Cores Recovered . | . . . . . . . . Used . | . . . . . . . . Hacking Detections 18 | . 2 . . . 11 1 4 Full Trace Events 1 | . . . . . 1 . . Feedback Events . | . . . . . . . . Feedback Blocked . | . . . . . . . . Robot Schematics Acquired . | . . . . . . . . Robots Built . | . . . . . . . . Matter . | . . . . . . . . Time . | . . . . . . . . Total Robot Build Rating . | . . . . . . . . Part Schematics Acquired 1 | . . . . . 1 . . Parts Built . | . . . . . . . . Matter . | . . . . . . . . Time . | . . . . . . . . Total Part Build Rating . | . . . . . . . . Parts Repaired . | . . . . . . . . Time . | . . . . . . . . Parts Recycled . | . . . . . . . . Recycled Matter . | . . . . . . . . Retrieved Matter . | . . . . . . . . Retrieved Components . | . . . . . . . . Parts Scanalyzed 2 | . . . . . 2 . . Part Schematics Acquired 1 | . . . . . 1 . . Parts Damaged . | . . . . . . . . Bothacking | -11 -10 -10 -10 -9 -8 -7 -7 ------------ Run | Scr Mat Min Exi Min Mat Fac Sto Used RIF Installer . | . . . . . . . . Robots Hacked . | . . . . . . . . Non-combat . | . . . . . . . . Combat . | . . . . . . . . Robot Hacks Applied . | . . . . . . . . Relay Couplers Released . | . . . . . . . . Robots Rewired . | . . . . . . . . Allies Hacked . | . . . . . . . . Hacks Repelled . | . . . . . . . . Allies | -11 -10 -10 -10 -9 -8 -7 -7 -------- Run | Scr Mat Min Exi Min Mat Fac Sto Total Allies 8 | . . 3 . 5 . . . Largest Group 3 | . . 3 . 1 1 . . Highest-Rated Group 40 | . . 40 . 34 34 . . Highest-Rated Ally 34 | . . 16 . 34 34 . . Total Orders 7 | . . . . . 3 . 4 STAY 3 | . . . . . 3 . . EXPLORE 1 | . . . . . . . 1 RETURN 3 | . . . . . . . 3 Ally Attacks 15 | . . 4 . 6 5 . . Total Damage 885 | . . 45 . 376 464 . . Kills 11 | . . 3 . 4 4 . . Allies Corrupted . | . . . . . . . . Allies Melted . | . . . . . . . . Field Lobotomies 5 | . . . . 5 . . . Intel | -11 -10 -10 -10 -9 -8 -7 -7 ------- Run | Scr Mat Min Exi Min Mat Fac Sto Robot Analysis Total . | . . . . . . . . Derelict Logs Recovered 1 | . . 1 . . . . . Drone Launches 6 | . . . . . . . 6 Drone Recoveries 2 | . . . . . . . 2 Exploration | -11 -10 -10 -10 -9 -8 -7 -7 ------------- Run | Scr Mat Min Exi Min Mat Fac Sto Turns Passed 2494 | 46 139 357 212 381 956 220 183 Spaces Moved 2300 | 43 146 248 212 154 1016 260 221 Core 557 | 3 5 207 . . 26 113 203 Treads . | . . . . . . . . Legs . | . . . . . . . . Wheels 632 | 40 141 41 212 15 37 144 2 Hover 764 | . . . . 139 625 . . Flight 347 | . . . . . 328 3 16 Fastest Speed 35 | 50 80 100 100 66 35 39 39 Average Speed 73 | 85 83 141 100 68 53 77 56 Slowest Speed 200 | 90 150 200 100 90 115 100 150 Overloaded Moves . | . . . . . . . . Propulsion Burnouts . | . . . . . . . . Robots Hopped 13 | . . . . . 13 . . Cave-ins Triggered . | . . . . . . . . Exploration Rate (%) 36 | 3 33 60 61 43 50 8 34 Regions Visited 7 Branch Regions 4 Pre-discovered Areas 2 | . . 1 . . . . 1 Known Exits Taken 4 | . 1 1 1 1 . . . Unknown Exits Taken 3 | 1 . . . . 1 1 . Scrap Searched 3 | . . 2 . 1 . . . Spaces Dug 8 | . . . . . 8 . . Terrain Destroyed 8 | . . . . . 8 . . Melee 8 | . . . . . 8 . . Projectile . | . . . . . . . . AOE . | . . . . . . . . Terrain Rammed . | . . . . . . . . Walls Destroyed . | . . . . . . . . Machines Disabled . | . . . . . . . . Actions | -11 -10 -10 -10 -9 -8 -7 -7 --------- Run | Scr Mat Min Exi Min Mat Fac Sto Total 3032 | 49 164 252 212 419 1384 275 277 Wait 658 | . 8 2 . 253 338 7 50 Move 2269 | 42 145 247 211 153 991 259 221 Hop 11 | . . . . . 11 . . Pick Up 10 | 1 4 . 1 2 1 1 . Fast Attach 30 | 6 3 1 . 1 10 6 3 Attach 6 | . . 1 . 3 . 1 1 Detach 4 | . . . . 2 1 1 . Swap 1 | . . 1 . . . . . Drop 16 | . 4 . . . 12 . . Fire 7 | . . . . 5 2 . . Melee 18 | . . . . . 18 . . Ram . | . . . . . . . . Kick . | . . . . . . . . Crush . | . . . . . . . . Escape Stasis . | . . . . . . . . Rewire . | . . . . . . . . Trap . | . . . . . . . . Miscellaneous 2 | . . . . . . . 2 Route ------- -11/Scrapyard -10/Materials -10/Mines -10/Exiles -9/Mines -8/Materials -7/Factory -7/Storage (discovered 1 exit: Fac) History --------- Turn | Location | Event 21 | -11/Scrapyard | Discovered new exit (range 15) 47 | -11/Scrapyard | Entered Materials 174 | -10/Materials | Discovered new exit (range 14) 182 | -10/Materials | Core integrity fell below 50% 185 | -10/Materials | Identified exit to Mines 186 | -10/Materials | Entered Mines 204 | -10/Mines | Assisted by bots powering up and referring to "LRC-V3" 285 | -10/Mines | Learned 2 Materials zone layouts 295 | -10/Mines | Learned location of Storage (-7) 303 | -10/Mines | Build established: Mutant 532 | -10/Mines | Received a Rocket Launcher from a helpful Derelict 538 | -10/Mines | Deemed a non-threat by the Exiles lab entrance 539 | -10/Mines | Discovered new exit (range 5) 542 | -10/Mines | Identified exit to Exiles 543 | -10/Mines | Entered Exiles 568 | -10/Exiles | Met 8R-AWN 584 | -10/Exiles | Met EX-HEX 612 | -10/Exiles | Met EX-BIN 625 | -10/Exiles | Aligned with FarCom system 626 | -10/Exiles | Given EX-Vault access code 649 | -10/Exiles | Opened EX-Vault 656 | -10/Exiles | Found Field Lobotomy Kit 678 | -10/Exiles | Warned to stay clear of 0b10 Research branches 691 | -10/Exiles | Exiles lab attacked by MAIN.C 747 | -10/Exiles | Discovered new exit (range 10) 754 | -10/Exiles | Identified exit to Mines 755 | -10/Exiles | Left Exiles lab with Field Lobotomy Kit 755 | -10/Exiles | Entered Mines 764 | -9/Mines | Assembled infested the area 774 | -9/Mines | Assimilated as-09460 with FLK Orb 776 | -9/Mines | Assimilated as-02872 with FLK Orb 779 | -9/Mines | Assimilated as-42454 with FLK Orb 782 | -9/Mines | Assimilated D-53 Grenadier with FLK Orb 788 | -9/Mines | Core integrity fell below 20% 1116 | -9/Mines | Assimilated G-47 Trooper with FLK Orb 1124 | -9/Mines | Discovered new exit (range 14) 1133 | -9/Mines | Identified exit to Materials 1136 | -9/Mines | Entered Materials 1136 | -8/Materials | Accompanied by 1 ally 1136 | -8/Materials | Evolved 4 slots: Power x1, Propulsion x2, Utility x1 1532 | -8/Materials | Build established: Scout 2073 | -8/Materials | Lost 4 parts (1p2n1u) 2084 | -8/Materials | Discovered new exit (range 16) 2092 | -8/Materials | Entered Factory 2092 | -7/Factory | Evolved 2 slots: Utility x2 2302 | -7/Factory | Discovered new exit (range 22) 2312 | -7/Factory | Entered Storage 2314 | -7/Storage | Identified exit to Factory 2349 | -7/Storage | Build established: Mutant 2363 | -7/Storage | Learned location of Armory (-4) 2481 | -7/Storage | Lost 6 parts (4n1u1w) 2482 | -7/Storage | Core integrity fell below 50% 2493 | -7/Storage | Core integrity fell below 20% 2495 | -7/Storage | Destroyed by Y-54 Guardian with Gatling Laser Last Messages --------------- 02419_ Drone retrieved by Drone Bay. 02421_ Drone released from Drone Bay. 02424_ Drone retrieved by Drone Bay. 02437_ Xenon Bombardment Thruster destroyed. 02440_ Acquired 13 matter. 02443_ Xenon Bombardment Thruster destroyed. 02443_ Com. Wheel destroyed. 02443_ Drone destroyed. 02448_ Drone Bay destroyed. 02449_ Imp. Datajack destroyed. 02450_ Wheel destroyed. 02468_ U-05 Engineer lays Concrete. 02475_ Triggered Blade Trap. 02475_ Massive razor-sharp blades shoot up from within the floor. 02475_ Transmission Jammer severed. 02478_ R-06 Scavenger collects Transmission Jammer. 02480_ Connecting with Terminal... >>Alert(Check) Current Alert Level: Low Security 02489_ U-05 Engineer lays Concrete. Map ----- +----------------------------------------------------+ | #^ # #??? | | # !! + """ """ #??? | | #^ ! ! # """ """ ###? | | ######+###################+#### # """ """ ""#? | | ??# #???????????? ?####### Y"#? | | ??# """"" #?????????? ! "?????# ""#? | | ??# """"" #???????Y ] """#???# ###? | | ??# """"" #???????# R"#???# #??? | | ??# #???????# """#???######+###### | | ??# #???????# """ """ ""#???????# | | ??# / #???????# """ """ ############ ###### | | ??#!// #???????# """ """ # + #????? | | ??#/// #???????########### """"" ## #????? | | ??##########???????????????????????" ???# #????? | | ????????????????????????????????????????# #????? | | ????????????????????????????????????????# #????? | | ????????????????????????????????????????# #????? | | ????????????????????????????????""???? ## #????? | | ??????????????????##????????????? ? ?## ##???? | | ?????????????????## ###############+#### #???? | | ?????????????????# # u "" #???? | | ?????????????????# """# g T #???? | | ?????????????????# """# Y Y #???? | | ?????????????????# """# g########## #???? | | ?????????????????# Y ggY #????????## ##???? | | ?????????????????#"" @# #?????????# #????? | | ?????????????????#"T / # #?????????# #????? | | ?????????????????#"" # #?????????# #????? | | ?????????????????# # #?????????# #????? | | ?????????????????########## #?????????# ###??? | | ??????????????????????????#####?????????# ""#??? | | ????????????????????????????????????????# ""#??? | | ??????????????????????????????????????g?+ T"#??? | | ??????????????????????????????????????l # ""#??? | | ?????????????????????????????????????? # ""#??? | | ??????????????????????????????????????g?# ###??? | | ????????????????????????????????????? ?# #????? | | ????????????????Y???????????????????##??# #????? | | ????????????????????????????w???????????# #????? | | ?????????????????????????????Y??????????# #????? | | ????????????????????????????????????????# %#????? | | ????????????????????????????????????????# #????? | | ????????????????????????????????????????# % ###### | | ???????????????????????o???????????????## % ## # | | ???????????????????????????????????????# + T | | ???????????????????????????????????????# T ### # | | ???????????????????????????????????????# "" ##! | | ???????????????????????????????????????# ##! ! | | ???????????????????????????????????????# ##! ! | | ???????????????????????????????????????########! ! | +----------------------------------------------------+ Best States ------------- Heat Dissipation 34 Energy Generation 19 Energy Capacity 250 Matter Stores 300 Matter Capacity 300 Sight Range 22 Terrain Scan Range 20 Terrain Scan Density 10 Jamming Range 8 Evasion (%) 68 Recoil Reduction 2 Item Schematics ----------------- Com. Wheel | -8/Materials | Scanalyzed Robot Schematics ------------------ None Fabricated ------------ Nothing Alien Tech Used ----------------- None Achievements -------------- None Challenges ------------ None Game ------ Seed DamperNeutrinoCleaver Manual? 0 Play Time 00:44:09 Cumulative 122.1 hours Start 2020.11.24 @ 07:37:49 End 2020.11.24 @ 10:31:07 Sessions 3 Manual Loads 0 Difficulty Rogue Special Mode Halloween2020/ForbiddenLore Game No. 79 Rogue 21 Adventurer 21 Explorer 37 Win Type - Total 6 Types 6/0/0/0/0/0/0/0/0 Lore% 47 Gallery% 70 Achievement% 57 Wizard Run 0 Options --------- ASCII 1 Keyboard 0 Movement Mouse Keybinds 0 Fullscreen 2 Font 18/Terminus Map View 76x50 Tactical HUD 1 Map Filters NONE Filters NONE Steam 1 RUN: 87024ed4-67ff-4db3-b855-14376dd97525